[Event "January 2 Early 2024"]
[Site "https://www.chess.com"]
[Date "2024.01.02"]
[Round "7"]
[White "Tregubov, Pavel V."]
[Black "Bryakin, Mikhail"]
[Result "0-1"]
[Board "41"]
[TimeControl "180+1"]
[WhiteFideId "4115341"]
[BlackFideId "4165314"]
[WhiteElo "2643"]
[BlackElo "2836"]
[WhiteTeam "FRA"]
[BlackTeam "SRB"]
[WhiteClock "0:00:00"]
[BlackClock "0:00:39"]

1. e4 {[%clk 0:03:00]}  d5 {[%clk 0:02:54]} 2. exd5 {[%clk 0:03:00]}  Qxd5 {[%clk 0:02:55]} 3. Nc3 {[%clk 0:02:59]}  Qe5+ {[%clk 0:02:56]} 4. Be2 {[%clk 0:02:56]}  Bg4 {[%clk 0:02:55]} 5. d4 {[%clk 0:02:52]}  Bxe2 {[%clk 0:02:55]} 6. Ngxe2 {[%clk 0:02:49]}  Qa5 {[%clk 0:02:56]} 7. O-O {[%clk 0:02:49]}  Nf6 {[%clk 0:02:54]} 8. Bd2 {[%clk 0:02:45]}  Nc6 {[%clk 0:02:54]} 9. Ne4 {[%clk 0:02:41]}  Qf5 {[%clk 0:02:52]} 10. N2g3 {[%clk 0:02:38]}  Qd7 {[%clk 0:02:46]} 11. Be3 {[%clk 0:02:30]}  O-O-O {[%clk 0:02:43]} 12. c3 {[%clk 0:02:16]}  Nxe4 {[%clk 0:02:37]} 13. Nxe4 {[%clk 0:02:16]}  Qf5 {[%clk 0:02:37]} 14. Ng3 {[%clk 0:02:10]}  Qg6 {[%clk 0:02:36]} 15. Qa4 {[%clk 0:02:07]}  e6 {[%clk 0:02:34]} 16. b4 {[%clk 0:02:06]}  a6 {[%clk 0:02:20]} 17. b5 {[%clk 0:01:53]}  axb5 {[%clk 0:02:19]} 18. Qxb5 {[%clk 0:01:48]}  Rd5 {[%clk 0:02:19]} 19. Qa4 {[%clk 0:01:34]}  Ra5 {[%clk 0:02:05]} 20. Qb3 {[%clk 0:01:34]}  Qd3 {[%clk 0:01:59]} 21. Rfd1 {[%clk 0:01:28]}  Qb5 {[%clk 0:01:57]} 22. Qc2 {[%clk 0:01:28]}  Bd6 {[%clk 0:01:50]} 23. c4 {[%clk 0:01:19]}  Qa4 {[%clk 0:01:50]} 24. Qe2 {[%clk 0:01:17]}  Rd8 {[%clk 0:01:45]} 25. Ne4 {[%clk 0:01:15]}  Bb4 {[%clk 0:01:29]} 26. c5 {[%clk 0:00:58]}  Qb5 {[%clk 0:01:26]} 27. Qf3 {[%clk 0:00:54]}  f6 {[%clk 0:01:21]} 28. Qh3 {[%clk 0:00:45]}  Qc4 {[%clk 0:01:20]} 29. Qxh7 {[%clk 0:00:37]}  Qd5 {[%clk 0:01:19]} 30. a3 {[%clk 0:00:24]}  Bxa3 {[%clk 0:01:13]} 31. Nc3 {[%clk 0:00:23]}  Qc4 {[%clk 0:01:13]} 32. Nb1 {[%clk 0:00:19]}  Bb2 {[%clk 0:00:38]} 33. Rxa5 {[%clk 0:00:18]}  Nxa5 {[%clk 0:00:39]} 34. Nd2 {[%clk 0:00:18]}  Qe2 {[%clk 0:00:38]} 35. Rb1 {[%clk 0:00:16]}  Bxd4 {[%clk 0:00:38]} 36. Bxd4 {[%clk 0:00:00]}  Qxd2 {[%clk 0:00:39]} 0-1

[Event "January 2 Early 2024"]
[Site "https://www.chess.com"]
[Date "2024.01.02"]
[Round "7"]
[White "De Winter, Arthur"]
[Black "Al-Tarboush, Ward"]
[Result "1/2-1/2"]
[Board "45"]
[TimeControl "180+1"]
[WhiteFideId "1069020"]
[BlackFideId "7601450"]
[WhiteElo "2803"]
[BlackElo "2630"]
[WhiteTeam "NED"]
[BlackTeam "NOR"]
[WhiteClock "0:00:41"]
[BlackClock "0:00:09"]

1. e4 {[%clk 0:03:00]}  e6 {[%clk 0:03:00]} 2. d4 {[%clk 0:03:01]}  d5 {[%clk 0:03:00]} 3. Nc3 {[%clk 0:03:01]}  Nf6 {[%clk 0:02:59]} 4. Bg5 {[%clk 0:03:01]}  dxe4 {[%clk 0:02:59]} 5. Nxe4 {[%clk 0:03:01]}  Be7 {[%clk 0:02:59]} 6. Bxf6 {[%clk 0:03:02]}  gxf6 {[%clk 0:03:00]} 7. Nf3 {[%clk 0:03:00]}  f5 {[%clk 0:02:59]} 8. Nc3 {[%clk 0:03:00]}  a6 {[%clk 0:02:59]} 9. g3 {[%clk 0:03:01]}  b5 {[%clk 0:02:58]} 10. Bg2 {[%clk 0:03:01]}  Bb7 {[%clk 0:02:58]} 11. O-O {[%clk 0:03:01]}  O-O {[%clk 0:02:56]} 12. Qe2 {[%clk 0:02:59]}  b4 {[%clk 0:02:54]} 13. Nd1 {[%clk 0:02:53]}  Nd7 {[%clk 0:02:53]} 14. Ne3 {[%clk 0:02:50]}  Nf6 {[%clk 0:02:52]} 15. Rad1 {[%clk 0:02:49]}  Be4 {[%clk 0:02:50]} 16. Ne5 {[%clk 0:02:48]}  a5 {[%clk 0:02:32]} 17. Rfe1 {[%clk 0:02:44]}  Bd6 {[%clk 0:02:24]} 18. N3c4 {[%clk 0:02:38]}  Bxg2 {[%clk 0:02:07]} 19. Kxg2 {[%clk 0:02:39]}  Nd5 {[%clk 0:02:07]} 20. Qf3 {[%clk 0:02:34]}  Qg5 {[%clk 0:01:56]} 21. h4 {[%clk 0:02:29]}  Qg7 {[%clk 0:01:55]} 22. Ne3 {[%clk 0:02:08]}  Bxe5 {[%clk 0:01:39]} 23. dxe5 {[%clk 0:02:07]}  c6 {[%clk 0:01:36]} 24. Nc4 {[%clk 0:01:56]}  Kh8 {[%clk 0:01:33]} 25. a3 {[%clk 0:01:37]}  Rg8 {[%clk 0:01:32]} 26. axb4 {[%clk 0:01:37]}  axb4 {[%clk 0:01:31]} 27. Ra1 {[%clk 0:01:37]}  f4 {[%clk 0:01:26]} 28. Rxa8 {[%clk 0:01:32]}  Rxa8 {[%clk 0:01:27]} 29. Kh2 {[%clk 0:01:28]}  h6 {[%clk 0:01:23]} 30. gxf4 {[%clk 0:01:15]}  Rg8 {[%clk 0:01:22]} 31. Ne3 {[%clk 0:01:12]}  Qg6 {[%clk 0:01:17]} 32. f5 {[%clk 0:01:02]}  exf5 {[%clk 0:01:09]} 33. Qxf5 {[%clk 0:01:01]}  Qg7 {[%clk 0:01:05]} 34. Qe4 {[%clk 0:00:54]}  Nxe3 {[%clk 0:01:05]} 35. Rxe3 {[%clk 0:00:49]}  Qg1+ {[%clk 0:01:05]} 36. Kh3 {[%clk 0:00:49]}  Qf1+ {[%clk 0:01:03]} 37. Kh2 {[%clk 0:00:49]}  Qxf2+ {[%clk 0:01:01]} 38. Kh3 {[%clk 0:00:49]}  Qf1+ {[%clk 0:00:32]} 39. Kh2 {[%clk 0:00:49]}  Qg1+ {[%clk 0:00:32]} 40. Kh3 {[%clk 0:00:49]}  c5 {[%clk 0:00:19]} 41. Qf3 {[%clk 0:00:48]}  Qg6 {[%clk 0:00:16]} 42. Qf6+ {[%clk 0:00:44]}  Qxf6 {[%clk 0:00:14]} 43. exf6 {[%clk 0:00:45]}  Rg6 {[%clk 0:00:14]} 44. Re5 {[%clk 0:00:46]}  Rxf6 {[%clk 0:00:14]} 45. Rxc5 {[%clk 0:00:46]}  Rf2 {[%clk 0:00:14]} 46. Rc4 {[%clk 0:00:46]}  b3 {[%clk 0:00:13]} 47. cxb3 {[%clk 0:00:45]}  Rxb2 {[%clk 0:00:13]} 48. Rc3 {[%clk 0:00:45]}  Kg7 {[%clk 0:00:13]} 49. Kg3 {[%clk 0:00:45]}  Kg6 {[%clk 0:00:13]} 50. Rf3 {[%clk 0:00:45]}  f5 {[%clk 0:00:13]} 51. Kf4 {[%clk 0:00:41]}  Kf6 {[%clk 0:00:12]} 52. Rc3 {[%clk 0:00:40]}  Rb1 {[%clk 0:00:10]} 53. Rc6+ {[%clk 0:00:40]}  Kg7 {[%clk 0:00:10]} 54. Kxf5 {[%clk 0:00:40]}  Rxb3 {[%clk 0:00:11]} 55. Rc7+ {[%clk 0:00:41]}  Kg8 {[%clk 0:00:10]} 56. h5 {[%clk 0:00:40]}  Rb6 {[%clk 0:00:09]} 57. Rc8+ {[%clk 0:00:39]}  Kg7 {[%clk 0:00:09]} 58. Rc7+ {[%clk 0:00:40]}  Kg8 {[%clk 0:00:09]} 59. Rc8+ {[%clk 0:00:41]}  Kg7 {[%clk 0:00:09]} 60. Rc7+ {[%clk 0:00:41]}  Kg8 {[%clk 0:00:09]} 1/2-1/2

[Event "January 2 Early 2024"]
[Site "https://www.chess.com"]
[Date "2024.01.02"]
[Round "7"]
[White "Holt, Conrad"]
[Black "Souleidis, Georgios"]
[Result "1/2-1/2"]
[Board "46"]
[TimeControl "180+1"]
[WhiteFideId "2034387"]
[BlackFideId "4206827"]
[WhiteElo "2798"]
[BlackElo "2627"]
[WhiteTeam "USA"]
[BlackTeam "GRE"]
[WhiteClock "0:00:08"]
[BlackClock "0:00:12"]

1. d4 {[%clk 0:03:00]}  Nf6 {[%clk 0:02:59]} 2. c4 {[%clk 0:03:00]}  g6 {[%clk 0:02:59]} 3. Nc3 {[%clk 0:02:59]}  Bg7 {[%clk 0:02:59]} 4. e4 {[%clk 0:02:59]}  d6 {[%clk 0:02:59]} 5. Nf3 {[%clk 0:02:57]}  O-O {[%clk 0:03:00]} 6. h3 {[%clk 0:02:57]}  Nbd7 {[%clk 0:02:58]} 7. Bg5 {[%clk 0:02:57]}  c5 {[%clk 0:02:57]} 8. d5 {[%clk 0:02:57]}  b5 {[%clk 0:02:57]} 9. cxb5 {[%clk 0:02:56]}  a6 {[%clk 0:02:58]} 10. Nd2 {[%clk 0:02:56]}  axb5 {[%clk 0:02:27]} 11. Bxb5 {[%clk 0:02:55]}  Nb6 {[%clk 0:02:25]} 12. O-O {[%clk 0:02:53]}  Ba6 {[%clk 0:02:24]} 13. a4 {[%clk 0:02:49]}  Bxb5 {[%clk 0:02:24]} 14. Nxb5 {[%clk 0:02:38]}  Qd7 {[%clk 0:02:20]} 15. Nc3 {[%clk 0:02:36]}  Rfb8 {[%clk 0:02:12]} 16. Qc2 {[%clk 0:02:35]}  Ne8 {[%clk 0:02:08]} 17. Rfb1 {[%clk 0:02:20]}  Nc7 {[%clk 0:02:05]} 18. Ra3 {[%clk 0:02:13]}  Na6 {[%clk 0:02:04]} 19. a5 {[%clk 0:02:08]}  Nb4 {[%clk 0:02:03]} 20. Qd1 {[%clk 0:02:07]}  Nc8 {[%clk 0:02:03]} 21. Nc4 {[%clk 0:02:07]}  Ra6 {[%clk 0:01:59]} 22. Qe2 {[%clk 0:01:50]}  Rba8 {[%clk 0:01:59]} 23. Bf4 {[%clk 0:01:40]}  R8a7 {[%clk 0:01:51]} 24. e5 {[%clk 0:01:38]}  Qf5 {[%clk 0:01:47]} 25. Bg3 {[%clk 0:01:29]}  Nxd5 {[%clk 0:01:42]} 26. Rd1 {[%clk 0:01:17]}  Nxc3 {[%clk 0:01:41]} 27. bxc3 {[%clk 0:01:14]}  Qe6 {[%clk 0:01:23]} 28. Qg4 {[%clk 0:00:56]}  d5 {[%clk 0:01:12]} 29. Rb3 {[%clk 0:00:41]}  Ra8 {[%clk 0:00:58]} 30. Nb6 {[%clk 0:00:25]}  Nxb6 {[%clk 0:00:56]} 31. Qxe6 {[%clk 0:00:23]}  fxe6 {[%clk 0:00:56]} 32. axb6 {[%clk 0:00:23]}  Rb8 {[%clk 0:00:54]} 33. b7 {[%clk 0:00:20]}  Ra7 {[%clk 0:00:52]} 34. Rdb1 {[%clk 0:00:19]}  Kf7 {[%clk 0:00:52]} 35. f4 {[%clk 0:00:19]}  Ke8 {[%clk 0:00:45]} 36. Bf2 {[%clk 0:00:19]}  Ra5 {[%clk 0:00:45]} 37. Rb5 {[%clk 0:00:15]}  Rxb5 {[%clk 0:00:44]} 38. Rxb5 {[%clk 0:00:15]}  Kd7 {[%clk 0:00:45]} 39. Bxc5 {[%clk 0:00:14]}  Kc6 {[%clk 0:00:45]} 40. Ba7 {[%clk 0:00:12]}  Rxb7 {[%clk 0:00:45]} 41. Rxb7 {[%clk 0:00:12]}  Kxb7 {[%clk 0:00:46]} 42. Bc5 {[%clk 0:00:12]}  Kc6 {[%clk 0:00:44]} 43. Bxe7 {[%clk 0:00:11]}  Kb5 {[%clk 0:00:45]} 44. Kf2 {[%clk 0:00:10]}  Kc4 {[%clk 0:00:45]} 45. Ke3 {[%clk 0:00:06]}  Kxc3 {[%clk 0:00:45]} 46. Bc5 {[%clk 0:00:06]}  Kc4 {[%clk 0:00:42]} 47. Ba7 {[%clk 0:00:04]}  Bf8 {[%clk 0:00:41]} 48. g4 {[%clk 0:00:05]}  Ba3 {[%clk 0:00:39]} 49. Kf3 {[%clk 0:00:03]}  d4 {[%clk 0:00:37]} 50. f5 {[%clk 0:00:03]}  gxf5 {[%clk 0:00:37]} 51. gxf5 {[%clk 0:00:04]}  exf5 {[%clk 0:00:36]} 52. Kf4 {[%clk 0:00:04]}  d3 {[%clk 0:00:36]} 53. Be3 {[%clk 0:00:04]}  Bc5 {[%clk 0:00:28]} 54. Bd2 {[%clk 0:00:03]}  Bb4 {[%clk 0:00:26]} 55. Be3 {[%clk 0:00:03]}  Bc5 {[%clk 0:00:14]} 56. Bd2 {[%clk 0:00:03]}  Bb4 {[%clk 0:00:12]} 57. Be3 {[%clk 0:00:04]}  d2 {[%clk 0:00:13]} 58. Bxd2 {[%clk 0:00:04]}  Bxd2+ {[%clk 0:00:14]} 59. Kxf5 {[%clk 0:00:05]}  Kd5 {[%clk 0:00:11]} 60. e6 {[%clk 0:00:05]}  Bb4 {[%clk 0:00:11]} 61. Kf4 {[%clk 0:00:05]}  Kxe6 {[%clk 0:00:11]} 62. Kf3 {[%clk 0:00:06]}  Kf5 {[%clk 0:00:11]} 63. h4 {[%clk 0:00:06]}  Kg6 {[%clk 0:00:11]} 64. h5+ {[%clk 0:00:06]}  Kxh5 {[%clk 0:00:11]} 65. Kg2 {[%clk 0:00:06]}  Kg4 {[%clk 0:00:12]} 66. Kh1 {[%clk 0:00:07]}  Kh3 {[%clk 0:00:12]} 67. Kg1 {[%clk 0:00:07]}  Bd6 {[%clk 0:00:12]} 68. Kh1 {[%clk 0:00:08]}  Bc5 {[%clk 0:00:12]} 1/2-1/2

[Event "January 2 Early 2024"]
[Site "https://www.chess.com"]
[Date "2024.01.02"]
[Round "7"]
[White "Teterev, Vitaly"]
[Black "Haug, Havard"]
[Result "1-0"]
[Board "47"]
[TimeControl "180+1"]
[WhiteFideId "13501429"]
[BlackFideId "1547887"]
[WhiteElo "2606"]
[BlackElo "2786"]
[WhiteTeam "BLR"]
[BlackTeam "NOR"]
[WhiteClock "0:01:34"]
[BlackClock "0:00:58"]

1. e4 {[%clk 0:03:00]}  c6 {[%clk 0:02:58]} 2. d4 {[%clk 0:03:00]}  d5 {[%clk 0:02:58]} 3. exd5 {[%clk 0:03:01]}  cxd5 {[%clk 0:02:59]} 4. Bd3 {[%clk 0:03:01]}  Nc6 {[%clk 0:02:59]} 5. c3 {[%clk 0:03:01]}  Qc7 {[%clk 0:02:59]} 6. h3 {[%clk 0:03:01]}  g6 {[%clk 0:02:58]} 7. Nf3 {[%clk 0:03:01]}  Nf6 {[%clk 0:02:57]} 8. O-O {[%clk 0:03:00]}  Bg7 {[%clk 0:02:54]} 9. Re1 {[%clk 0:03:00]}  O-O {[%clk 0:02:55]} 10. Be3 {[%clk 0:02:59]}  Bf5 {[%clk 0:02:53]} 11. Bf1 {[%clk 0:02:57]}  Rfe8 {[%clk 0:02:52]} 12. Qc1 {[%clk 0:02:51]}  Ne4 {[%clk 0:02:43]} 13. Bf4 {[%clk 0:02:50]}  Qd7 {[%clk 0:02:39]} 14. Nbd2 {[%clk 0:02:42]}  f6 {[%clk 0:02:32]} 15. Nxe4 {[%clk 0:02:38]}  dxe4 {[%clk 0:02:30]} 16. Nd2 {[%clk 0:02:19]}  e5 {[%clk 0:02:29]} 17. dxe5 {[%clk 0:02:13]}  Nxe5 {[%clk 0:02:30]} 18. Nxe4 {[%clk 0:02:13]}  Nd3 {[%clk 0:02:29]} 19. Bxd3 {[%clk 0:02:11]}  Qxd3 {[%clk 0:02:30]} 20. Nd6 {[%clk 0:02:10]}  Rxe1+ {[%clk 0:02:15]} 21. Qxe1 {[%clk 0:02:09]}  Bd7 {[%clk 0:01:39]} 22. Qe7 {[%clk 0:02:02]}  Bf5 {[%clk 0:01:23]} 23. Qf7+ {[%clk 0:01:55]}  Kh8 {[%clk 0:01:22]} 24. Re1 {[%clk 0:01:53]}  h5 {[%clk 0:01:08]} 25. Ne8 {[%clk 0:01:42]}  Qd7 {[%clk 0:01:06]} 26. Re7 {[%clk 0:01:41]}  Qxe7 {[%clk 0:00:54]} 27. Qxe7 {[%clk 0:01:40]}  Rxe8 {[%clk 0:00:55]} 28. Qxe8+ {[%clk 0:01:40]}  Kh7 {[%clk 0:00:56]} 29. Qf7 {[%clk 0:01:37]}  Bb1 {[%clk 0:00:57]} 30. Bd6 {[%clk 0:01:34]}  g5 {[%clk 0:00:57]} 31. Bf8 {[%clk 0:01:34]}  Kh6 {[%clk 0:00:58]} 32. Qxg7# {[%clk 0:01:34]} 1-0

[Event "January 2 Early 2024"]
[Site "https://www.chess.com"]
[Date "2024.01.02"]
[Round "7"]
[White "Aswath, S"]
[Black "Hammer, Jon Ludvig"]
[Result "1-0"]
[Board "49"]
[TimeControl "180+1"]
[WhiteFideId "46694919"]
[BlackFideId "1503707"]
[WhiteElo "2600"]
[BlackElo "2769"]
[WhiteTeam "IND"]
[BlackTeam "NOR"]
[WhiteClock "0:01:48"]
[BlackClock "0:00:00"]

1. c4 {[%clk 0:03:00]}  e5 {[%clk 0:02:59]} 2. g3 {[%clk 0:02:59]}  c6 {[%clk 0:02:59]} 3. Bg2 {[%clk 0:03:00]}  d5 {[%clk 0:02:58]} 4. cxd5 {[%clk 0:03:00]}  cxd5 {[%clk 0:02:59]} 5. Nf3 {[%clk 0:03:01]}  Nc6 {[%clk 0:02:51]} 6. d3 {[%clk 0:03:00]}  Bb4+ {[%clk 0:02:44]} 7. Bd2 {[%clk 0:02:59]}  Bxd2+ {[%clk 0:02:43]} 8. Qxd2 {[%clk 0:02:59]}  Nge7 {[%clk 0:02:37]} 9. O-O {[%clk 0:02:59]}  O-O {[%clk 0:02:32]} 10. b4 {[%clk 0:02:57]}  a6 {[%clk 0:02:29]} 11. Qb2 {[%clk 0:02:56]}  Qd6 {[%clk 0:02:26]} 12. Nbd2 {[%clk 0:02:53]}  f6 {[%clk 0:02:14]} 13. Rab1 {[%clk 0:02:49]}  Be6 {[%clk 0:02:13]} 14. a4 {[%clk 0:02:48]}  g5 {[%clk 0:01:58]} 15. Rfc1 {[%clk 0:02:45]}  g4 {[%clk 0:01:41]} 16. Nh4 {[%clk 0:02:44]}  f5 {[%clk 0:01:16]} 17. Nb3 {[%clk 0:02:36]}  b6 {[%clk 0:00:56]} 18. a5 {[%clk 0:02:33]}  bxa5 {[%clk 0:00:56]} 19. bxa5 {[%clk 0:02:32]}  Rfb8 {[%clk 0:00:54]} 20. Qc3 {[%clk 0:02:32]}  Rb5 {[%clk 0:00:42]} 21. Nc5 {[%clk 0:02:18]}  Nd4 {[%clk 0:00:36]} 22. Bf1 {[%clk 0:02:03]}  Rxb1 {[%clk 0:00:36]} 23. Rxb1 {[%clk 0:01:58]}  Rc8 {[%clk 0:00:36]} 24. Nb7 {[%clk 0:01:54]}  Rxc3 {[%clk 0:00:21]} 25. Nxd6 {[%clk 0:01:54]}  Ra3 {[%clk 0:00:20]} 26. e3 {[%clk 0:01:53]}  Nf3+ {[%clk 0:00:19]} 27. Nxf3 {[%clk 0:01:50]}  gxf3 {[%clk 0:00:20]} 28. Rb6 {[%clk 0:01:51]}  Rxa5 {[%clk 0:00:13]} 29. Nb7 {[%clk 0:01:50]}  Rb5 {[%clk 0:00:13]} 30. Rxe6 {[%clk 0:01:49]}  Rxb7 {[%clk 0:00:14]} 31. Rxe5 {[%clk 0:01:48]}  a5 {[%clk 0:00:13]} 32. e4 {[%clk 0:01:46]}  a4 {[%clk 0:00:05]} 33. exd5 {[%clk 0:01:46]}  a3 {[%clk 0:00:05]} 34. d6 {[%clk 0:01:46]}  a2 {[%clk 0:00:04]} 35. Ra5 {[%clk 0:01:46]}  Nc6 {[%clk 0:00:01]} 36. Rxa2 {[%clk 0:01:46]}  Kf7 {[%clk 0:00:01]} 37. Rc2 {[%clk 0:01:46]}  Nd4 {[%clk 0:00:01]} 38. Rc7+ {[%clk 0:01:47]}  Rxc7 {[%clk 0:00:00]} 39. dxc7 {[%clk 0:01:48]} 1-0

[Event "January 2 Early 2024"]
[Site "https://www.chess.com"]
[Date "2024.01.02"]
[Round "7"]
[White "Jeet, Jain"]
[Black "Vaibhav Jayant Raut"]
[Result "1-0"]
[Board "50"]
[TimeControl "180+1"]
[WhiteFideId "5073022"]
[BlackFideId "5089034"]
[WhiteElo "2561"]
[BlackElo "2745"]
[WhiteTeam "IND"]
[BlackTeam "IND"]
[WhiteClock "0:00:09"]
[BlackClock "0:00:00"]

1. Nf3 {[%clk 0:02:53]}  Nf6 {[%clk 0:02:59]} 2. Ng1 {[%clk 0:02:53]}  d5 {[%clk 0:02:56]} 3. Nf3 {[%clk 0:02:51]}  c5 {[%clk 0:02:54]} 4. d3 {[%clk 0:02:51]}  Nc6 {[%clk 0:02:54]} 5. g3 {[%clk 0:02:51]}  e5 {[%clk 0:02:51]} 6. Bg2 {[%clk 0:02:52]}  Be7 {[%clk 0:02:51]} 7. O-O {[%clk 0:02:52]}  O-O {[%clk 0:02:51]} 8. Nbd2 {[%clk 0:02:53]}  e4 {[%clk 0:02:49]} 9. Ne1 {[%clk 0:02:52]}  Bf5 {[%clk 0:02:39]} 10. c4 {[%clk 0:02:50]}  exd3 {[%clk 0:02:35]} 11. exd3 {[%clk 0:02:48]}  Nd4 {[%clk 0:02:35]} 12. Nb3 {[%clk 0:02:43]}  dxc4 {[%clk 0:02:22]} 13. dxc4 {[%clk 0:02:41]}  Bg4 {[%clk 0:02:06]} 14. Nf3 {[%clk 0:02:36]}  Nxf3+ {[%clk 0:01:38]} 15. Bxf3 {[%clk 0:02:36]}  Qxd1 {[%clk 0:01:38]} 16. Bxd1 {[%clk 0:02:36]}  Be6 {[%clk 0:01:39]} 17. Be2 {[%clk 0:02:34]}  b6 {[%clk 0:01:29]} 18. a4 {[%clk 0:02:33]}  a5 {[%clk 0:01:29]} 19. Bf4 {[%clk 0:02:32]}  Rfd8 {[%clk 0:01:20]} 20. Bc7 {[%clk 0:02:30]}  Rdc8 {[%clk 0:01:14]} 21. Bf4 {[%clk 0:02:20]}  Rd8 {[%clk 0:01:13]} 22. Rfd1 {[%clk 0:02:04]}  Rac8 {[%clk 0:01:08]} 23. Rxd8+ {[%clk 0:01:57]}  Bxd8 {[%clk 0:01:08]} 24. Nc1 {[%clk 0:01:56]}  Bc7 {[%clk 0:01:03]} 25. Bxc7 {[%clk 0:01:49]}  Rxc7 {[%clk 0:01:04]} 26. Ra3 {[%clk 0:01:46]}  Bf5 {[%clk 0:01:00]} 27. Rb3 {[%clk 0:01:42]}  Rc6 {[%clk 0:00:52]} 28. Re3 {[%clk 0:01:28]}  Kf8 {[%clk 0:00:48]} 29. Na2 {[%clk 0:01:25]}  Rd6 {[%clk 0:00:43]} 30. Kf1 {[%clk 0:01:15]}  Rd2 {[%clk 0:00:24]} 31. Rb3 {[%clk 0:01:15]}  Bg4 {[%clk 0:00:19]} 32. f3 {[%clk 0:01:05]}  Bd7 {[%clk 0:00:11]} 33. Rxb6 {[%clk 0:01:00]}  Bxa4 {[%clk 0:00:10]} 34. Nc3 {[%clk 0:01:01]}  Bd7 {[%clk 0:00:08]} 35. Ke1 {[%clk 0:00:57]}  Rd4 {[%clk 0:00:06]} 36. Ra6 {[%clk 0:00:55]}  Be6 {[%clk 0:00:04]} 37. b3 {[%clk 0:00:52]}  h5 {[%clk 0:00:03]} 38. Rxa5 {[%clk 0:00:52]}  h4 {[%clk 0:00:04]} 39. Rxc5 {[%clk 0:00:52]}  hxg3 {[%clk 0:00:03]} 40. hxg3 {[%clk 0:00:52]}  Rd8 {[%clk 0:00:04]} 41. Ne4 {[%clk 0:00:48]}  Nd7 {[%clk 0:00:03]} 42. Rb5 {[%clk 0:00:47]}  Ra8 {[%clk 0:00:04]} 43. Nc5 {[%clk 0:00:44]}  Nf6 {[%clk 0:00:02]} 44. Nxe6+ {[%clk 0:00:44]}  fxe6 {[%clk 0:00:03]} 45. f4 {[%clk 0:00:44]}  Ne4 {[%clk 0:00:03]} 46. Rb7 {[%clk 0:00:20]}  Ra1+ {[%clk 0:00:03]} 47. Bd1 {[%clk 0:00:21]}  Nc3 {[%clk 0:00:03]} 48. Rd7 {[%clk 0:00:21]}  Ke8 {[%clk 0:00:03]} 49. Rd3 {[%clk 0:00:21]}  Ne4 {[%clk 0:00:04]} 50. Ke2 {[%clk 0:00:16]}  Ra2+ {[%clk 0:00:04]} 51. Kf3 {[%clk 0:00:15]}  Nc5 {[%clk 0:00:02]} 52. Re3 {[%clk 0:00:14]}  Rd2 {[%clk 0:00:03]} 53. Be2 {[%clk 0:00:12]}  Kf7 {[%clk 0:00:03]} 54. b4 {[%clk 0:00:12]}  Na6 {[%clk 0:00:02]} 55. b5 {[%clk 0:00:12]}  Nc5 {[%clk 0:00:02]} 56. Re5 {[%clk 0:00:12]}  Nb3 {[%clk 0:00:02]} 57. Ke3 {[%clk 0:00:10]}  Rb2 {[%clk 0:00:02]} 58. c5 {[%clk 0:00:09]}  Nc1 {[%clk 0:00:02]} 59. Bf1 {[%clk 0:00:10]}  Rb3+ {[%clk 0:00:02]} 60. Kd2 {[%clk 0:00:09]}  Na2 {[%clk 0:00:02]} 61. c6 {[%clk 0:00:09]}  Rxg3 {[%clk 0:00:02]} 62. Rc5 {[%clk 0:00:09]}  Nb4 {[%clk 0:00:00]} 63. c7 {[%clk 0:00:09]} 1-0

[Event "January 2 Early 2024"]
[Site "https://www.chess.com"]
[Date "2024.01.02"]
[Round "7"]
[White "Garcia Almaguer, Juan Manuel"]
[Black "Han, Yichen"]
[Result "0-1"]
[Board "53"]
[TimeControl "180+1"]
[WhiteFideId "5110491"]
[BlackFideId "1054430"]
[WhiteElo "2514"]
[BlackElo "2691"]
[WhiteTeam "MEX"]
[BlackTeam "NED"]
[WhiteClock "0:00:16"]
[BlackClock "0:00:06"]

1. e4 {[%clk 0:03:00]}  c6 {[%clk 0:02:49]} 2. d3 {[%clk 0:02:58]}  d5 {[%clk 0:02:49]} 3. Nd2 {[%clk 0:02:58]}  e5 {[%clk 0:02:49]} 4. Ngf3 {[%clk 0:02:53]}  Nd7 {[%clk 0:02:48]} 5. g3 {[%clk 0:02:53]}  Ngf6 {[%clk 0:02:48]} 6. Bg2 {[%clk 0:02:53]}  Bd6 {[%clk 0:02:48]} 7. O-O {[%clk 0:02:53]}  O-O {[%clk 0:02:49]} 8. Re1 {[%clk 0:02:52]}  Re8 {[%clk 0:02:47]} 9. c4 {[%clk 0:02:48]}  d4 {[%clk 0:02:41]} 10. a3 {[%clk 0:02:43]}  a5 {[%clk 0:02:40]} 11. h3 {[%clk 0:02:36]}  a4 {[%clk 0:02:36]} 12. g4 {[%clk 0:02:32]}  Nc5 {[%clk 0:02:29]} 13. Nf1 {[%clk 0:02:30]}  b5 {[%clk 0:02:27]} 14. cxb5 {[%clk 0:02:26]}  cxb5 {[%clk 0:02:28]} 15. Ng3 {[%clk 0:02:21]}  Bf8 {[%clk 0:02:25]} 16. Bg5 {[%clk 0:02:16]}  Ne6 {[%clk 0:02:21]} 17. Bd2 {[%clk 0:02:03]}  Nc5 {[%clk 0:02:13]} 18. Bb4 {[%clk 0:01:59]}  Nb3 {[%clk 0:02:07]} 19. Bxf8 {[%clk 0:01:53]}  Rxf8 {[%clk 0:02:03]} 20. Nxe5 {[%clk 0:01:51]}  Nxa1 {[%clk 0:01:59]} 21. Qxa1 {[%clk 0:01:52]}  Nd7 {[%clk 0:01:44]} 22. Nc6 {[%clk 0:01:51]}  Qb6 {[%clk 0:01:39]} 23. Nf5 {[%clk 0:01:32]}  Nc5 {[%clk 0:01:19]} 24. b4 {[%clk 0:01:22]}  Nxd3 {[%clk 0:01:11]} 25. Rd1 {[%clk 0:01:17]}  Nf4 {[%clk 0:01:10]} 26. Ncxd4 {[%clk 0:00:41]}  Bxf5 {[%clk 0:00:35]} 27. Nxf5 {[%clk 0:00:39]}  f6 {[%clk 0:00:36]} 28. e5 {[%clk 0:00:34]}  Nxg2 {[%clk 0:00:33]} 29. Kxg2 {[%clk 0:00:35]}  Rae8 {[%clk 0:00:28]} 30. f4 {[%clk 0:00:31]}  fxe5 {[%clk 0:00:21]} 31. fxe5 {[%clk 0:00:32]}  Qc6+ {[%clk 0:00:21]} 32. Kg3 {[%clk 0:00:30]}  Qe4 {[%clk 0:00:13]} 33. Re1 {[%clk 0:00:27]}  Qd3+ {[%clk 0:00:10]} 34. Re3 {[%clk 0:00:26]}  Qd8 {[%clk 0:00:04]} 35. e6 {[%clk 0:00:26]}  Qc7+ {[%clk 0:00:04]} 36. Kh4 {[%clk 0:00:22]}  Rf6 {[%clk 0:00:04]} 37. e7 {[%clk 0:00:16]}  Qf4 {[%clk 0:00:05]} 38. Qa2+ {[%clk 0:00:11]}  Kh8 {[%clk 0:00:05]} 39. Qe2 {[%clk 0:00:09]}  Rxf5 {[%clk 0:00:04]} 40. Re4 {[%clk 0:00:07]}  Qg5+ {[%clk 0:00:05]} 41. Kg3 {[%clk 0:00:07]}  Rf7 {[%clk 0:00:05]} 42. Re5 {[%clk 0:00:08]}  Qf6 {[%clk 0:00:05]} 43. Re4 {[%clk 0:00:07]}  Rfxe7 {[%clk 0:00:04]} 44. g5 {[%clk 0:00:07]}  Qxg5+ {[%clk 0:00:04]} 45. Qg4 {[%clk 0:00:06]}  Qxg4+ {[%clk 0:00:04]} 46. Rxg4 {[%clk 0:00:07]}  Re3+ {[%clk 0:00:04]} 47. Kh4 {[%clk 0:00:08]}  Rxa3 {[%clk 0:00:05]} 48. Rg5 {[%clk 0:00:08]}  Re4+ {[%clk 0:00:04]} 49. Rg4 {[%clk 0:00:08]}  Rxg4+ {[%clk 0:00:04]} 50. hxg4 {[%clk 0:00:09]}  Rb3 {[%clk 0:00:04]} 51. Kg5 {[%clk 0:00:10]}  a3 {[%clk 0:00:03]} 52. Kh5 {[%clk 0:00:10]}  a2 {[%clk 0:00:04]} 53. g5 {[%clk 0:00:11]}  a1=Q {[%clk 0:00:04]} 54. g6 {[%clk 0:00:12]}  Qh1+ {[%clk 0:00:04]} 55. Kg4 {[%clk 0:00:12]}  Qg2+ {[%clk 0:00:05]} 56. Kf5 {[%clk 0:00:13]}  Rf3+ {[%clk 0:00:05]} 57. Ke5 {[%clk 0:00:13]}  Qe2+ {[%clk 0:00:06]} 58. Kd5 {[%clk 0:00:14]}  Qc4+ {[%clk 0:00:07]} 59. Kd6 {[%clk 0:00:14]}  Rf6+ {[%clk 0:00:07]} 60. Ke7 {[%clk 0:00:14]}  Qe6+ {[%clk 0:00:07]} 61. Kd8 {[%clk 0:00:15]}  Rf8+ {[%clk 0:00:08]} 62. Kc7 {[%clk 0:00:16]}  Rc8+ {[%clk 0:00:08]} 63. Kb7 {[%clk 0:00:16]}  Qc6+ {[%clk 0:00:09]} 64. Ka7 {[%clk 0:00:17]}  Rd8 {[%clk 0:00:06]} 65. gxh7 {[%clk 0:00:16]}  Ra8# {[%clk 0:00:06]} 0-1